Cogmind - Beta 9.6 @@@ ROGUE MODE // 2020.09.09 @ 10:24:59 // AFD2019/Pay2Buy Player: Hermelin Result: Destroyed by G-34 Mercenary with Small Laser Performance ------------- Evolutions (0) 0 Regions Visited (1) 200 Robots Destroyed (16) 80 Value Destroyed (256) 256 Prototype IDs (0) 0 Alien Tech Used (0) 0 Bonus (0) 0 TOTAL SCORE: 536 Bonus ------- None Cogmind --------- Core Integrity 0/250 Matter 260/300 Energy 100/100 System Corruption 0% Temperature Cool (6) Movement Core (50) Location -10/Materials Parts ------- > --- POWER (1) -------- (None) > --- PROPULSION (2) --- (None) > --- UTILITY (2) ------ System Shield > --- WEAPON (2) ------- (None) > --- INVENTORY (10) --- Improved Ion Engine Light Nuclear Core Disposable Heat Sink Advanced Terrain Scan Processor Peak State ------------ > --- POWER ------------ Nuclear Core > --- PROPULSION ------- Spiked Treads > --- UTILITY ---------- Cooling System Hardlight Generator > --- WEAPON ----------- Flamer Flamer > --- INVENTORY -------- Improved Ion Engine Light Nuclear Core Disposable Heat Sink Advanced Terrain Scan Processor [Rating: 15] Favorites ----------- Power Improved Ion Engine Engine Improved Ion Engine Power Core Nuclear Core Propulsion Spiked Treads Treads Spiked Treads Utility Cooling System Device Cooling System Hackware System Shield Weapon Flamer Special Weapon Flamer Build | -11 -10 ------- Run | Scr Mat Slots Evolved . | . . Power . | . . Propulsion . | . . Utility . | . . Weapon . | . . Parts Attached 2 | . 2 Power 1 | . 1 Engine . | . . Core 1 | . 1 Reactor . | . . Propulsion . | . . Treads . | . . Leg . | . . Wheel . | . . Hover . | . . Flight . | . . Utility 1 | . 1 Device 1 | . 1 Storage . | . . Processor . | . . Hackware . | . . Protection . | . . Artifact . | . . Weapon . | . . Energy Gun . | . . Energy Cannon . | . . Ballistic Gun . | . . Ballistic Cannon . | . . Launcher . | . . Special Weapon . | . . Impact Weapon . | . . Slashing Weapon . | . . Piercing Weapon . | . . Special Melee Weapon . | . . Unidentified Prototypes . | . . Parts Lost 6 | . 6 Power 1 | . 1 Propulsion 1 | . 1 Utility 2 | . 2 Weapon 2 | . 2 Highest Loss Streak 6 | . 6 Average Slot Usage (%) 76 | . 76 Engine 8 | . 8 Core 4 | . 4 Treads 13 | . 13 Device 24 | . 24 Hackware 1 | . 1 Special Weapon 23 | . 23 Naked Turns . | . . Heaviest Build 18 | 14 18 Greatest Support 20 | 20 20 Greatest Overweight (x) . | . . Average Overweight (x) . | . . Largest Inventory Capacity 10 | 10 10 Average Capacity 10 | 10 10 Most Carried 4 | . 4 Average Carried 1 | . 2 Final Capacity 10 | 10 10 Final Carried 4 | . 4 Class Distribution -------------------- 100% | Mutant Dominant Class ---------------- Mutant | -10/Materials Resources | -11 -10 ----------- Run | Scr Mat Matter Collected 150 | 55 95 Remotely . | . . Salvage Created 195 | 55 140 Parts . | . . Haulers Intercepted . | . . Recyclers Shooed . | . . Parts Field Recycled . | . . Retrieved Matter . | . . Parts Self-Destructed . | . . Prevented . | . . Kills | -11 -10 ------- Run | Scr Mat Combat Hostiles Destroyed 8 | . 8 Cannons 6 | . 6 Classes Destroyed 5 | 3 2 Worker 2 | 2 . Tunneler 5 | 5 . Recycler 1 | 1 . Swarmer 3 | . 3 Grunt 5 | . 5 Best Kill Streak 4 | 3 4 Combat Bots Only 4 | . 4 Max Kills in Single Turn 1 | 1 1 Gunslinging . | . . Exploded . | . . Melee . | . . Uniques/NPCs Destroyed . | . . Combat | -11 -10 -------- Run | Scr Mat Damage Taken 699 | . 699 Core 253 | . 253 Absorbed by Shields 27 | . 27 Core Remaining (%) 100 | 100 . Volleys Fired 32 | 15 17 Largest 2 | 2 2 Hottest 200 | 200 200 Shots Fired 61 | 30 31 Gun . | . . Cannon . | . . Launcher . | . . Special 61 | 30 31 Kinetic . | . . Thermal 61 | 30 31 Explosive . | . . Electromagnetic . | . . Robot Hit Streak 29 | 12 29 Robot Miss Streak 2 | 2 1 Penetration Max . | . . Secondary Targets . | . . Shots Hit Robots 49 | 23 26 Core Hits 22 | 9 13 Critical Hits . | . . Critical Kills . | . . Critical Parts Destroyed . | . . Melee Attacks . | . . Impact . | . . Slashing . | . . Piercing . | . . Sneak Attacks . | . . Combat Hostiles . | . . Follow-up Attacks . | . . Damage Inflicted 554 | 271 283 Guns . | . . Cannons . | . . Explosions . | . . Melee . | . . Ramming . | . . Kinetic . | . . Thermal 554 | 271 283 Explosive . | . . Electromagnetic . | . . Impact . | . . Slashing . | . . Piercing . | . . Highest Corruption . | . . Average Corruption . | . . Corruption Purged . | . . Overload Shots . | . . Overflow Damage 10 | 10 . Projectiles 10 | 10 . Explosions . | . . Melee . | . . Knockbacks . | . . Impact . | . . Kinetic . | . . Secondary . | . . Self-Inflicted Damage . | . . Shots . | . . Rammed . | . . Targets Rammed . | . . Kicked . | . . Crushed . | . . Highest Temperature 22 | . 22 Average Temperature 10 | . 10 Received Heat Transfer 339 | . 339 Siege Activations . | . . Robots Corrupted . | . . Combat Hostiles . | . . Parts Fried . | . . Impact Corruptions . | . . Robots Melted 2 | . 2 Combat Hostiles 2 | . 2 Parts Melted . | . . Heat Transferred 4080 | 2000 2080 Parts Sabotaged . | . . Parts Stolen . | . . Parts Stripped . | . . Power Chain Reactions . | . . Missiles Intercepted . | . . Alert | -11 -10 ------- Run | Scr Mat Peak Influence 155 | 40 155 Average Influence 57 | 22 75 Maximum Alert Level . | . . Low Security (%) 100 | 100 100 Level 1 . | . . Level 2 . | . . Level 3 . | . . Level 4 . | . . Level 5 . | . . High Security . | . . Max Security . | . . Squads Dispatched 3 | . 3 Investigation 1 | . 1 Extermination . | . . Reinforcement 2 | . 2 Assault . | . . Garrison . | . . Intercept . | . . Construction Impeded . | . . Haulers Reinforced . | . . Stealth | -11 -10 --------- Run | Scr Mat Distress Signals . | . . Communications Jammed . | . . Distress Signals . | . . Times Spotted 15 | . 15 Peak Tracking Total 7 | . 7 Tactical Retreats . | . . Traps | -11 -10 ------- Run | Scr Mat Traps Triggered . | . . Indirectly . | . . Trap Hack Attempts . | . . Triggered . | . . Disarmed . | . . Reprogrammed . | . . Reused . | . . Traps Extracted . | . . Installed . | . . Triggered . | . . Machines | -11 -10 ---------- Run | Scr Mat Machines Disabled . | . . Max in Single Turn . | . . Machines Sabotaged . | . . Garrisons Compromised . | . . Overloaded Fab Kills . | . . Fab Network Shutdowns . | . . Hacking | -11 -10 --------- Run | Scr Mat Machines Accessed 2 | . 2 Terminals 2 | . 2 Fabricators . | . . Repair Stations . | . . Recycling Units . | . . Scanalyzers . | . . Garrison Access . | . . Total Hacks 7 | . 7 Successful 1 | . 1 Failed 6 | . 6 Catastrophic 1 | . 1 Database Lockouts . | . . Manual 4 | . 4 Terminals 7 | . 7 Fabricators . | . . Repair Stations . | . . Recycling Units . | . . Scanalyzers . | . . Garrison Access . | . . Terminal Hacks 1 | . 1 Unreport Threat 1 | . 1 Fabricator Hacks . | . . Repair Station Hacks . | . . Recycling Unit Hacks . | . . Scanalyzer . | . . Garrison Access Hacks . | . . Unauthorized Hacks . | . . Terminals . | . . Fabricators . | . . Repair Stations . | . . Recycling Units . | . . Scanalyzers . | . . Garrison Access . | . . Data Cores Recovered . | . . Used . | . . Hacking Detections 2 | . 2 Full Trace Events 1 | . 1 Feedback Events . | . . Feedback Blocked . | . . Robot Schematics Acquired . | . . Robots Built . | . . Matter . | . . Time . | . . Total Robot Build Rating . | . . Part Schematics Acquired . | . . Parts Built . | . . Matter . | . . Time . | . . Total Part Build Rating . | . . Parts Repaired . | . . Time . | . . Parts Recycled . | . . Recycled Matter . | . . Retrieved Matter . | . . Retrieved Components . | . . Parts Scanalyzed . | . . Part Schematics Acquired . | . . Parts Damaged . | . . Bothacking | -11 -10 ------------ Run | Scr Mat Used RIF Installer . | . . Robots Hacked . | . . Non-combat . | . . Combat . | . . Robot Hacks Applied . | . . Relay Couplers Released . | . . Robots Rewired . | . . Allies Hacked . | . . Hacks Repelled . | . . Allies | -11 -10 -------- Run | Scr Mat Total Allies . | . . Largest Group . | . . Highest-Rated Group . | . . Highest-Rated Ally . | . . Total Orders . | . . Ally Attacks . | . . Total Damage . | . . Kills . | . . Allies Corrupted . | . . Allies Melted . | . . Intel | -11 -10 ------- Run | Scr Mat Robot Analysis Total . | . . Derelict Logs Recovered . | . . Drone Launches . | . . Drone Recoveries . | . . Exploration | -11 -10 ------------- Run | Scr Mat Turns Passed 508 | 173 335 Spaces Moved 172 | 66 106 Core 14 | 14 . Treads 158 | 52 106 Legs . | . . Wheels . | . . Hover . | . . Flight . | . . Fastest Speed 50 | 50 160 Average Speed 151 | 136 160 Slowest Speed 160 | 160 160 Overloaded Moves . | . . Propulsion Burnouts . | . . Robots Hopped . | . . Cave-ins Triggered . | . . Exploration Rate (%) 22 | 4 40 Regions Visited 1 Branch Regions . Pre-discovered Areas . | . . Known Exits Taken . | . . Unknown Exits Taken 1 | 1 . Scrap Searched . | . . Spaces Dug . | . . Terrain Destroyed . | . . Melee . | . . Projectile . | . . AOE . | . . Actions | -11 -10 --------- Run | Scr Mat Total 297 | 89 208 Wait 78 | 9 69 Move 171 | 65 106 Hop . | . . Pick Up . | . . Fast Attach . | . . Attach . | . . Detach . | . . Swap 2 | . 2 Drop . | . . Fire 32 | 15 17 Melee . | . . Ram . | . . Kick . | . . Crush . | . . Escape Stasis . | . . Rewire 14 | . 14 Trap . | . . Miscellaneous . | . . Route ------- -11/Scrapyard -10/Materials (discovered 2 exits: [*Mat] / [*Min]) History --------- Turn | Location | Event 3 | -11/Scrapyard | Discovered new exit (range 15) 174 | -11/Scrapyard | Entered Materials 285 | -10/Materials | Discovered new exit (range 9) 308 | -10/Materials | Build established: Mutant 379 | -10/Materials | Discovered new exit (range 13) 464 | -10/Materials | Core integrity fell below 50% 500 | -10/Materials | Core integrity fell below 20% 509 | -10/Materials | Destroyed by G-34 Mercenary with Small Laser Last Messages --------------- M003. 00383_ K-01 Serf collects debris. 00387_ Connecting with Terminal... 00387_ ALERT: Suspicious activity at Terminal M008. Dispatching Investigation squad. 00387_ Terminal unresponsive. 00390_ K-01 Serf collects debris. 00400_ G-34 Mercenary critical meltdown. 00404_ Acquired 14 matter. 00449_ Flamer destroyed. 00451_ Hardlight Generator destroyed. 00455_ G-47 Trooper critical meltdown. 00457_ Flamer destroyed. [You open your loot box...] [Congratulations on your very own System Shield!] 00463_ G-34 Mercenary destroyed. 00475_ Cooling System destroyed. 00477_ Nuclear Core destroyed. 00483_ G-34 Mercenary destroyed. 00491_ Spk. Treads destroyed. Map ----- +----------------------------------------------------+ | | | ??????????????????????????????????????? | | ??????????????????????????????????????? | | ??????????????????????????????????????? | | ??????????????????????????????????????? | | ??????????????????????????????????????? | | ??????????????????????????????????????? | | ??????????????????????????????????????? | | ??????????????????????????????????????? | | ??????????????????????????????????????? | | ??????????????????????????????????????? | | ??????????????????????????????????????? | | ??????????????????????????????????????? | | ????????? ??? ??? ????????????????? | | ????????" "?" "?" #?#####?######??? | | ??"" ??"" """ """ #?# #? #??? | | ?? ?? #?# < # #??? | | ?? ? #?# # "" #??? | | ??"" """ """ """ #?# + T" #??? | | ?""" """ """ """ #?# # "" #??? | | ?""" """ """ """ #?# # #??? | | ?? #?# #?######??? | | ??? #?# ##????????? | | ????? #?# T#????????? | | ??????# #?# ##????????? | | #?????# ###@ #?????????? | | ???# %% #?????????? | | " ""??# % #?????????? | | " ""??# g #?????????? | | " """?# ####+##### ####?????????? | | ?# # %% ## #????????????? | | # # ## #????????????? | | # # ## #????????????? | | / # ## #????????????? | | ####### # ## #????????????? | | ## ########## #????????????? | | #????????????? | | < #????????????? | | """ """ """ #????????????? | | ## """ """ """ #????????????? | | " " ?# """ """ """ #????????????? | | " "??# ???????????? | | ####??# ???????????? | | ??????# ???????????? | | ??????# ##+####### #????????????? | | ??????# # #????????????????????? | | ??##### + """ #?? ??????????????? | | ??+ # "Y" #?# +?????????????? | | ??##### # #?# #?????????????? | | ??????## ## #?# #?????????????? | +----------------------------------------------------+ Best States ------------- Heat Dissipation 47 Coolant Potential 50 Energy Generation 14 Energy Capacity 265 Matter Stores 260 Matter Capacity 300 Sight Range 16 Terrain Scan Density 10 Evasion (%) 40 Recoil Reduction 1 Defensive Hacking 10 Item Schematics ----------------- None Robot Schematics ------------------ None Fabricated ------------ Nothing Alien Tech Used ----------------- None Achievements -------------- None Challenges ------------ None Cogshop Purchases (11) ------------------------ Flamer (699) Flamer (699) Spk. Treads (874) Cooling System (699) Disposable Heat Sink (699) Imp. Ion Engine (699) Hardlight Generator (Loot Box) Adv. Terrain Scan Processor (Loot Box) Lgt. Nuclear Core (Loot Box) Nuclear Core (Loot Box) System Shield (Loot Box) Game ------ Seed DerelictShadeCapacitor Manual? 0 Play Time 00:09:36 Cumulative 205.6 hours Start 2020.09.09 @ 10:04:41 End 2020.09.09 @ 10:24:59 Sessions 1 Manual Loads 0 Difficulty Rogue Special Mode AFD2019/Pay2Buy Game No. 84 Rogue 84 Adventurer 0 Explorer 0 Win Type - Total 3 Types 2/0/0/1/0/0/0 Lore% 82 Gallery% 78 Achievement% 68 Wizard Run 0 Options --------- ASCII 0 Keyboard 0 Movement Numpad Keybinds 0 Fullscreen 1 Font 18/SmallcapsGlow Map View 76x50 Tactical HUD 1 Map Filters NONE Filters NONE Steam X RUN: c28ad6c6-a14f-4bd5-9528-35a1fbeae09c